bitfinex/quotes_BTCUSD_20220218
["timestamp","ask_amount","ask_price","bid_price","bid_amount"]
[1645199384307,0.05,39761.0,39734.0,0.52131183]
[1645199384308,0.1,39741.0,39734.0,0.52131183]
[1645199384509,0.0099,39760.0,39737.0,1.331]
[1645199384705,0.17799171,39750.0,39740.0,0.29377883]
[1645199384908,0.16799171,39750.0,39746.0,0.19755918]
[1645199385111,0.1,39754.0,39746.0,0.19755918]
[1645199385309,0.24204435,39750.0,39746.0,0.19755918]
[1645199385507,0.24204435,39754.0,39746.0,0.19755918]
[1645199385809,0.34204435,39757.0,39747.0,0.26165347]
[1645199386010,0.34204435,39757.0,39752.0,0.21024246]
[1645199386307,0.20286566,39765.0,39757.0,1.15]
[1645199386308,0.062911,39765.0,39757.0,1.15]
[1645199386509,0.1998,39777.0,39757.0,1.15]
[1645199386510,0.5,39795.0,39758.0,0.3]
[1645199386709,0.099,39764.0,39760.0,1.15]
[1645199386909,0.05,39773.0,39761.0,1.1961]
[1645199387110,0.05004435,39764.0,39761.0,0.0461]
[1645199387310,0.05,39773.0,39761.0,0.0461]
[1645199387311,0.23213173,39765.0,39761.0,0.0461]
[1645199387507,0.05,39773.0,39762.0,0.23512583]
[1645199387714,0.05,39773.0,39762.0,0.28122583]
[1645199387963,0.333645,39772.0,39752.0,0.301]
[1645199388152,0.0095,39772.0,39753.0,0.0461]
[1645199388351,0.00524857,39760.0,39754.0,0.3]
[1645199388557,0.00524857,39760.0,39752.0,0.29662283]
[1645199388558,0.125818,39778.0,39752.0,0.29662283]
[1645199388559,0.2,39821.0,39761.0,0.31574571]
[1645199388752,2.21594301,39827.0,39773.0,0.21339829]
[1645199388753,0.333645,39790.0,39773.0,0.21339829]
[1645199388952,0.333645,39782.0,39773.0,0.21339829]
[1645199389153,0.33371908,39782.0,39773.0,0.21339829]
[1645199389352,0.1,39774.0,39773.0,0.21339829]
[1645199389555,0.433645,39774.0,39773.0,0.21339829]
[1645199389756,0.1,39774.0,39773.0,0.21339829]
[1645199390357,0.1,39774.0,39761.0,0.31574571]
[1645199390757,0.05,39781.0,39768.0,0.1]
[1645199390958,7.408e-05,39782.0,39773.0,0.1]
[1645199390959,0.0001515,39782.0,39773.0,0.1]
[1645199391355,0.0001515,39782.0,39771.0,0.3]
[1645199391553,0.0001515,39782.0,39777.0,0.1]
[1645199391793,0.00022897,39782.0,39781.0,0.25414004]
[1645199392094,0.00022897,39782.0,39781.0,0.24145324]
[1645199392496,0.475753,39805.0,39781.0,0.24145324]
[1645199392497,0.15,39823.0,39820.0,18.18339584]
[1645199392695,1.66477824,39821.0,39820.0,14.81677765]
[1645199392895,1.99808052,39821.0,39820.0,14.81062735]
[1645199393094,1.31554982,39821.0,39820.0,14.43344535]
[1645199393293,1.31554982,39821.0,39820.0,14.42729505]
[1645199393494,1.18214754,39821.0,39820.0,14.42729505]
[1645199393696,1.14933752,39821.0,39820.0,14.42729505]
[1645199393897,0.6025643,39821.0,39820.0,14.42729505]
[1645199394096,0.533545,39821.0,39820.0,14.64462868]
[1645199394496,0.1999,39821.0,39820.0,34.64462868]
[1645199394697,0.018457,39835.0,39821.0,1.15]
[1645199394897,0.333645,39828.0,39821.0,1.15]
[1645199395095,0.0999,39824.0,39821.0,1.15]
[1645199395297,0.33368,39832.0,39820.0,34.64343208]
[1645199395742,0.33368,39832.0,39821.0,0.3]
[1645199395942,0.33368,39832.0,39820.0,34.64343208]
[1645199396340,0.33368,39824.0,39820.0,34.64343208]
[1645199396541,0.1999,39824.0,39820.0,34.64343208]
[1645199396740,0.1999,39824.0,39821.0,0.24083823]
[1645199396942,0.002,39824.0,39821.0,0.24083823]
[1645199397141,0.33368,39823.0,39821.0,0.24083823]
[1645199397342,0.33368,39823.0,39820.0,34.42609845]
[1645199397743,0.43368,39823.0,39820.0,34.42609845]
[1645199397941,0.33368,39823.0,39820.0,34.42609845]
[1645199398144,0.00376329,39821.0,39820.0,34.42609845]
[1645199398341,0.33871542,39821.0,39820.0,34.42609845]
[1645199398543,0.38871542,39821.0,39820.0,34.42609845]
[1645199398943,0.38971542,39821.0,39820.0,34.42609845]
[1645199399188,0.43971542,39821.0,39820.0,34.42609845]
[1645199399390,0.333685,39822.0,39821.0,1.15]
[1645199399589,0.333685,39833.0,39821.0,1.15]
[1645199399788,0.333685,39833.0,39832.0,0.19295814]
[1645199399987,0.333685,39833.0,39832.0,0.22911446]
[1645199399988,0.3462535,39833.0,39832.0,0.22911446]
[1645199400187,0.34625097,39833.0,39832.0,0.22911446]
[1645199400588,0.34624923,39833.0,39832.0,0.22911446]
[1645199400792,0.261976,39835.0,39833.0,1.15]
[1645199400995,0.05,39840.0,39833.0,1.15]
[1645199401189,0.333643,39839.0,39833.0,1.15]
[1645199401388,0.02520435,39843.0,39833.0,1.15]
[1645199401588,0.06,39849.0,39835.0,1.15]
[1645199401790,0.01,39869.0,39839.0,1.35]
[1645199401791,0.062779,39856.0,39839.0,1.35]
[1645199401990,0.008757,39866.0,39841.0,0.333615]
[1645199401991,0.062784,39861.0,39841.0,0.333615]
[1645199402194,0.0092,39865.0,39846.0,0.1]
[1645199402492,0.0092,39865.0,39840.0,0.0095]
[1645199402493,0.0092,39865.0,39859.0,0.28427801]
[1645199402688,0.333615,39864.0,39860.0,0.44419366]
[1645199403239,0.333615,39864.0,39851.0,0.3]
[1645199403443,0.333615,39864.0,39846.0,0.001]
[1645199403640,0.01,39869.0,39846.0,0.001]
[1645199403641,0.236804,39862.0,39846.0,0.001]
[1645199403840,0.125562,39859.0,39846.0,0.001]
[1645199404038,0.47868817,39861.0,39846.0,0.001]
[1645199404039,0.28664098,39848.0,39846.0,0.001]
[1645199404238,0.0094,39863.0,39846.0,0.30023969]
[1645199404439,0.0094,39863.0,39847.0,0.00861827]
[1645199404741,0.333615,39861.0,39842.0,0.32275768]
[1645199405140,0.0094,39863.0,39855.0,0.19750672]
[1645199405340,0.02010841,39864.0,39855.0,0.19750672]
[1645199405341,0.236804,39862.0,39855.0,0.19750672]
[1645199405545,0.02010841,39864.0,39855.0,0.19750672]
[1645199405742,8.428e-05,39857.0,39855.0,0.19750672]
[1645199405945,8.428e-05,39857.0,39848.0,0.21519718]
[1645199406791,0.30999041,39854.0,39849.0,0.01]
[1645199406993,0.236804,39853.0,39848.0,0.002]
[1645199407192,7.46e-05,39858.0,39848.0,0.002]
[1645199407995,0.062775,39856.0,39853.0,0.32637913]
[1645199408192,7.46e-05,39858.0,39853.0,0.32637913]
[1645199408193,0.05,39857.0,39853.0,0.32637913]
[1645199408393,7.46e-05,39858.0,39853.0,0.3247115]
[1645199408394,7.493e-05,39854.0,39853.0,0.3247115]
[1645199408596,7.493e-05,39854.0,39850.0,0.1]
[1645199408892,7.493e-05,39854.0,39853.0,0.49823749]
[1645199409293,7.46e-05,39858.0,39853.0,0.23763975]
[1645199410295,7.46e-05,39858.0,39855.0,0.22288994]
[1645199410745,7.46e-05,39858.0,39849.0,0.30524803]
[1645199410746,0.06283608,39862.0,39841.0,0.2]
[1645199410952,7.408e-05,39862.0,39850.0,0.001]
[1645199411149,0.333615,39861.0,39850.0,0.001]
[1645199411347,0.05,39861.0,39850.0,0.001]
[1645199411645,0.062769,39858.0,39852.0,0.24889887]
[1645199411846,0.062769,39858.0,39854.0,0.29380164]
[1645199412046,0.05,39860.0,39854.0,0.29380164]
[1645199412247,7.408e-05,39862.0,39854.0,0.29380164]
[1645199412946,7.408e-05,39862.0,39857.0,0.21770751]
[1645199413146,7.408e-05,39862.0,39854.0,0.00594223]
[1645199413449,0.396297,39861.0,39854.0,0.00594223]
[1645199413750,0.396297,39861.0,39854.0,0.00298223]
[1645199413751,0.333523,39861.0,39854.0,0.00298223]
[1645199413950,0.34181088,39858.0,39854.0,0.00298223]
[1645199414192,0.125541,39856.0,39854.0,0.00198223]
[1645199414390,0.333523,39855.0,39854.0,0.00198223]
[1645199414895,0.383523,39855.0,39841.0,0.0094]
[1645199415094,0.383523,39855.0,39839.0,0.32802725]
[1645199415095,0.30101288,39845.0,39839.0,0.32802725]
[1645199415291,0.30101288,39845.0,39827.0,0.7556]
[1645199415292,0.125583,39843.0,39833.0,0.20108833]
[1645199415492,0.125583,39843.0,39821.0,0.1]
[1645199415493,0.633523,39842.0,39821.0,0.1]
[1645199415691,0.21251,39840.0,39829.0,0.1]
[1645199415890,0.21251,39840.0,39829.0,0.08207776]
[1645199416091,0.1,39840.0,39829.0,0.08207776]
[1645199416396,0.33585075,39839.0,39827.0,0.14918573]
[1645199416592,0.125607,39835.0,39822.0,0.0099]
[1645199416793,0.125607,39835.0,39809.0,0.002]
[1645199416794,0.683523,39834.0,39809.0,0.002]
[1645199416992,0.683523,39834.0,39822.0,0.002]
[1645199417193,0.52098817,39833.0,39822.0,0.002]
[1645199417393,0.52098817,39833.0,39812.0,0.001]
[1645199417394,0.188496,39827.0,39812.0,0.001]
[1645199417592,0.18846,39824.0,39822.0,0.20346393]
[1645199417794,0.0423,39828.0,39822.0,0.20346393]
[1645199417795,1.256567,39851.0,39850.0,14.93347709]
[1645199418054,1.186233,39851.0,39850.0,14.93347709]
[1645199418450,1.186233,39851.0,39850.0,14.12661495]
[1645199418451,1.53854514,39851.0,39850.0,14.12661495]
[1645199418651,1.43864514,39851.0,39850.0,14.12661495]
[1645199418850,1.086333,39851.0,39850.0,13.37295195]
[1645199419058,1.186233,39851.0,39850.0,13.37295195]
[1645199419350,0.433423,39851.0,39850.0,13.37295195]
[1645199419553,0.433423,39851.0,39850.0,12.99622795]
[1645199419952,0.388328,39852.0,39850.0,13.09622795]
[1645199420352,0.19997822,39852.0,39850.0,13.09622795]
[1645199420552,7.822e-05,39852.0,39850.0,13.09622795]
[1645199420751,7.822e-05,39852.0,39850.0,13.05827279]
[1645199420752,7.37e-05,39851.0,39850.0,13.05827279]
[1645199420953,7.37e-05,39851.0,39850.0,13.29925919]
[1645199421154,7.37e-05,39851.0,39850.0,13.19817148]
[1645199421354,7.37e-05,39851.0,39850.0,12.95718508]
[1645199421355,0.3335967,39851.0,39850.0,12.95718508]
[1645199423596,1.11228487,39851.0,39850.0,9.42430253]
[1645199423795,1.11228487,39851.0,39824.0,0.7928]
[1645199423796,1.26063517,39851.0,39824.0,0.7928]
[1645199423993,0.062815,39832.0,39824.0,0.7928]
[1645199424196,0.062815,39832.0,39824.0,0.8928]
[1645199424197,0.333523,39831.0,39824.0,0.8928]
[1645199424392,0.333523,39831.0,39824.0,0.7928]
[1645199424393,0.05,39831.0,39824.0,0.7928]
[1645199424592,0.05,39831.0,39825.0,0.18840457]
[1645199424791,0.17563,39836.0,39825.0,0.18840457]
[1645199424992,0.17563,39836.0,39829.0,0.1]
[1645199424993,0.333523,39835.0,39829.0,0.1]
[1645199425192,0.05,39836.0,39827.0,0.33465928]
[1645199425450,0.05,39836.0,39833.0,0.1]
[1645199425644,0.05,39843.0,39834.0,0.19743304]
[1645199425645,0.05,39837.0,39834.0,0.19743304]
[1645199425847,0.333523,39835.0,39828.0,0.7272]
[1645199426046,0.062815,39833.0,39828.0,0.7272]
[1645199426246,0.062809,39831.0,39828.0,0.7272]
[1645199426647,0.05,39830.0,39828.0,0.7272]
[1645199426850,0.21251,39830.0,39828.0,0.7272]
[1645199427051,0.26251,39830.0,39828.0,0.7272]
[1645199427747,0.0423,39829.0,39828.0,0.7272]
[1645199427946,0.375823,39829.0,39820.0,0.74182319]
[1645199428148,0.062836,39822.0,39820.0,0.74182319]
[1645199428346,0.21251,39821.0,39820.0,0.74182319]
[1645199428545,0.31251,39821.0,39820.0,0.74182319]
[1645199428947,0.88857756,39821.0,39820.0,0.74182319]
[1645199429207,1.4787,39851.0,39850.0,9.72373637]
[1645199429408,0.0061503,39825.0,39820.0,0.74182319]
[1645199429604,0.81218217,39824.0,39820.0,0.74182319]
[1645199429804,0.062993,39821.0,39820.0,0.74182319]
[1645199430004,0.196487,39821.0,39820.0,0.74182319]
[1645199430305,0.238787,39821.0,39820.0,0.74182319]
[1645199430506,0.238787,39821.0,39820.0,0.99164314]
[1645199430803,0.08885686,39821.0,39820.0,0.99164314]
[1645199431006,1.686e-05,39821.0,39820.0,0.99164314]
[1645199431205,1.686e-05,39821.0,39820.0,0.74182319]
[1645199431206,0.04231686,39821.0,39820.0,0.74182319]
[1645199431705,0.31211686,39821.0,39820.0,0.74182319]
[1645199432304,0.04231686,39821.0,39820.0,0.8435314]
[1645199432508,0.15,39853.0,39822.0,1.15]
[1645199432708,0.7,39852.0,39823.0,0.31706122]
[1645199432956,9e-06,39828.0,39823.0,0.31706122]
[1645199433145,0.175644,39835.0,39822.0,1.15]
[1645199433146,0.062829,39830.0,39822.0,1.15]
[1645199433346,0.00838118,39824.0,39822.0,1.15]
[1645199433544,0.01119954,39824.0,39822.0,1.38006888]
[1645199433745,2.954e-05,39824.0,39822.0,1.38006888]
[1645199433946,2.954e-05,39824.0,39822.0,1.15]
[1645199434749,0.06287154,39824.0,39822.0,1.15]
[1645199435148,0.0899,39823.0,39822.0,1.15]
[1645199435451,0.12566,39827.0,39820.0,0.64182319]
[1645199435452,0.36546101,39858.0,39850.0,13.33657779]
[1645199435647,3.06116108,39851.0,39850.0,12.95955879]
[1645199435846,5.06116108,39851.0,39850.0,12.95955879]
[1645199436047,5.08913557,39851.0,39850.0,8.12066379]
[1645199436248,4.31995257,39851.0,39850.0,3.37276942]
[1645199436691,2.61380227,39851.0,39850.0,1.98886942]
[1645199437096,1.59556053,39851.0,39850.0,1.98886942]
[1645199437492,1.59556053,39851.0,39850.0,1.98624654]
[1645199437693,1.59556053,39851.0,39850.0,1.60932454]
[1645199438095,1.59556053,39851.0,39850.0,1.23239354]
[1645199438293,1.79636053,39851.0,39850.0,1.23239354]
[1645199438794,1.79636053,39851.0,39850.0,0.85546054]
[1645199438997,2.49636053,39851.0,39850.0,0.85546054]
[1645199439198,2.49636053,39851.0,39823.0,0.00223505]
[1645199439203,1.15,39850.0,39823.0,0.00223505]
[1645199439396,0.062845,39830.0,39823.0,0.00223505]
[1645199439599,0.062845,39830.0,39826.0,0.22208659]
[1645199439795,0.125684,39829.0,39826.0,0.22208659]
[1645199440195,0.125684,39829.0,39824.0,0.27970331]
[1645199440452,0.126684,39829.0,39824.0,0.49955415]
[1645199440640,0.126684,39829.0,39824.0,0.21985084]
[1645199440841,0.07,39825.0,39823.0,0.00111505]
[1645199441043,0.126684,39829.0,39823.0,0.00111505]
[1645199441044,0.4723992,39824.0,39823.0,0.00111505]
[1645199441244,0.0706465,39824.0,39823.0,0.00111505]
[1645199442044,0.1123,39824.0,39823.0,0.00111505]
[1645199442644,0.6783495,39824.0,39823.0,5.05e-06]
[1645199442844,0.3182503,39824.0,39823.0,5.05e-06]
[1645199443043,0.6721992,39824.0,39823.0,5.05e-06]
[1645199443242,1.15088737,39824.0,39820.0,0.64182319]
[1645199443445,0.07,39821.0,39820.0,0.61790319]
[1645199443643,0.3121,39821.0,39820.0,0.24070319]
[1645199443846,0.27283518,39821.0,39820.0,0.24070319]
[1645199444494,0.46142318,39821.0,39820.0,0.24070319]
[1645199444692,0.430688,39821.0,39820.0,0.24070319]
[1645199444897,0.56664927,39821.0,39820.0,0.24070319]
[1645199445896,0.56664927,39821.0,39820.0,0.50642917]
[1645199445897,0.56234901,39821.0,39820.0,0.50642917]
[1645199446100,0.33146101,39821.0,39820.0,0.50642917]
[1645199446299,0.2698,39821.0,39820.0,0.50642917]
[1645199446495,0.3698,39821.0,39820.0,0.50642917]
[1645199446694,0.2698,39821.0,39820.0,0.60642917]
[1645199447095,0.2698,39821.0,39820.0,0.50642917]
[1645199447296,0.2698,39821.0,39820.0,0.24070319]
[1645199447297,0.1998,39821.0,39820.0,0.24070319]
[1645199447601,0.2698,39821.0,39820.0,0.24070319]
[1645199448044,0.3198,39821.0,39820.0,0.24070319]
[1645199448244,0.28113409,39821.0,39820.0,0.24400656]
[1645199448442,0.38113409,39821.0,39820.0,0.24400656]
[1645199448945,0.37806606,39821.0,39820.0,0.24400656]
[1645199449142,0.27806606,39821.0,39820.0,0.24400656]
[1645199449343,0.1998,39821.0,39820.0,0.34400656]
[1645199449547,0.001,39826.0,39820.0,0.34400656]
[1645199449844,0.05,39838.0,39825.0,0.1]
[1645199450044,0.0061503,39842.0,39828.0,0.19204615]
[1645199450254,0.07,39838.0,39828.0,0.19204615]
[1645199450444,0.5,39841.0,39830.0,0.20811366]
[1645199450445,0.062827,39831.0,39830.0,0.20811366]
[1645199450644,0.132827,39831.0,39830.0,0.20811366]
[1645199451044,0.132827,39831.0,39821.0,0.36206578]
[1645199451248,0.29198291,39839.0,39820.0,0.24400656]
[1645199451446,0.062833,39823.0,39820.0,0.24400656]
[1645199452497,0.062833,39823.0,39821.0,0.22949549]
[1645199453298,0.062833,39823.0,39822.0,0.00307698]
[1645199453702,0.105133,39823.0,39822.0,0.00307698]
[1645199454099,0.21313161,39823.0,39822.0,0.00307698]
[1645199454299,0.21313161,39823.0,39822.0,0.30639339]
[1645199454501,0.08029861,39823.0,39822.0,0.30639339]
[1645199454703,0.03799861,39823.0,39822.0,0.26938573]
[1645199455001,0.1,39825.0,39823.0,0.00329047]
[1645199455199,0.1,39825.0,39824.0,0.29843991]
[1645199455450,0.17,39825.0,39824.0,0.4984385]
[1645199455642,0.17,39825.0,39824.0,0.27069084]
[1645199455643,0.132831,39825.0,39824.0,0.27069084]
[1645199455844,0.132831,39825.0,39823.0,0.00329047]
[1645199456043,0.07,39824.0,39823.0,0.00329047]
[1645199456241,0.062831,39825.0,39823.0,0.00329047]
[1645199456443,0.063831,39825.0,39823.0,0.00329047]
[1645199457044,0.07,39824.0,39823.0,0.00329047]
[1645199457443,0.063831,39825.0,39823.0,0.00329047]
[1645199457642,0.062831,39825.0,39820.0,0.09737997]
[1645199457843,0.26797,39826.0,39820.0,0.09737997]
[1645199457844,0.062842,39822.0,39820.0,0.09737997]
[1645199458050,0.12567,39826.0,39825.0,0.26587745]
[1645199458051,0.125665,39826.0,39825.0,0.26587745]
[1645199458343,0.125665,39826.0,39825.0,0.6163717]
[1645199458943,0.195665,39826.0,39825.0,0.6163717]
[1645199459193,0.195665,39826.0,39822.0,0.1]
[1645199459394,0.06284,39822.0,39820.0,0.19737997]
[1645199459594,0.06284,39822.0,39820.0,0.09737997]
[1645199460194,0.112844,39824.0,39817.0,0.725621]
[1645199460195,0.1184503,39821.0,39817.0,0.725621]
[1645199460394,0.125717,39819.0,39812.0,0.001]
[1645199460601,0.07,39815.0,39812.0,0.001]
[1645199460795,0.07,39815.0,39808.0,0.001]
[1645199460796,0.1123,39815.0,39808.0,0.001]
[1645199460999,0.18862,39812.0,39808.0,0.001]
[1645199461199,0.1123,39811.0,39797.0,0.3547663]
[1645199461396,0.07,39809.0,39794.0,0.1]
[1645199461595,0.35,39810.0,39788.0,0.3227866]
[1645199461596,0.125769,39796.0,39789.0,0.1]
[1645199461799,0.062885,39795.0,39789.0,0.1]
[1645199462196,0.07,39792.0,39787.0,0.001]
[1645199462397,0.1123,39791.0,39787.0,0.001]
[1645199462598,0.0423,39791.0,39787.0,0.001]
[1645199463148,0.1123,39791.0,39787.0,0.001]
[1645199463345,0.12858677,39791.0,39781.0,0.008]
[1645199463549,0.125813,39783.0,39781.0,0.006]
[1645199463745,0.1123,39782.0,39781.0,0.006]
[1645199463944,0.11635909,39782.0,39780.0,0.002]
[1645199464146,0.01115209,39781.0,39780.0,0.002]
[1645199464349,0.05345209,39781.0,39780.0,0.30832071]
[1645199464545,0.062907,39782.0,39780.0,0.30832071]
[1645199464744,0.0423,39781.0,39780.0,0.30832071]
[1645199464945,0.0423,39781.0,39780.0,0.65101416]
[1645199465343,0.0423,39781.0,39780.0,0.102]
[1645199465546,0.0423,39781.0,39780.0,0.002]
[1645199465748,0.0423,39781.0,39780.0,0.102]
[1645199465947,7.1,39820.0,39782.0,1.15]
[1645199465948,0.7,39809.0,39782.0,1.15]
[1645199466148,0.5,39803.0,39788.0,0.1]
[1645199466349,0.03809038,39805.0,39803.0,0.05]
[1645199466350,3.8e-07,39805.0,39803.0,0.05]
[1645199466548,0.062858,39809.0,39804.0,0.70967685]
[1645199466807,0.251462,39823.0,39808.0,0.1]
[1645199466808,0.00315926,39822.0,39808.0,0.1]
[1645199467004,0.00315926,39822.0,39810.0,0.23597104]
[1645199467205,0.00315926,39822.0,39812.0,0.07]
[1645199467405,0.085,39813.0,39811.0,0.7526]
[1645199467605,0.07,39812.0,39811.0,0.7526]
[1645199467811,0.062859,39817.0,39811.0,1.15870747]
[1645199468109,0.00315926,39822.0,39817.0,0.20530422]
[1645199468410,0.00315926,39822.0,39820.0,0.07]
[1645199468606,0.01,39829.0,39821.0,0.2953045]
[1645199468806,0.01,39829.0,39818.0,0.13610747]
[1645199468807,0.01,39829.0,39827.0,0.58565254]
[1645199469006,0.07,39828.0,39827.0,0.32951212]
[1645199469206,0.07,39828.0,39813.0,0.34675754]
[1645199469405,0.01,39829.0,39819.0,0.07]
[1645199469806,0.00975292,39829.0,39822.0,0.07]
[1645199470004,0.00975292,39829.0,39822.0,0.32583149]
[1645199470206,0.00975292,39829.0,39819.0,0.07]
[1645199470456,0.01075292,39829.0,39819.0,0.07]
[1645199470643,0.01075292,39829.0,39826.0,0.07]
[1645199470847,0.01075292,39829.0,39812.0,0.8792]
[1645199470848,0.11389253,39827.0,39812.0,0.7792]
[1645199471055,0.11389253,39827.0,39804.0,0.07]
[1645199471056,0.04389253,39821.0,39804.0,0.07]
[1645199471244,0.062862,39814.0,39809.0,0.30209361]
[1645199471444,0.062866,39812.0,39811.0,0.8226]
[1645199471843,0.132866,39812.0,39811.0,0.7526]
[1645199472045,0.13034655,39812.0,39811.0,0.7526]
[1645199472245,0.10481894,39812.0,39811.0,0.8226]
[1645199472444,0.10581894,39812.0,39811.0,0.7526]
[1645199472645,0.08748163,39812.0,39811.0,0.7526]
[1645199473651,0.13378163,39812.0,39811.0,0.7526]
[1645199473847,0.13378163,39812.0,39811.0,0.72727503]
[1645199473848,0.13278163,39812.0,39811.0,0.72727503]
[1645199474049,0.18278163,39812.0,39811.0,0.72727503]
[1645199474299,0.13278163,39812.0,39811.0,0.72727503]
[1645199474501,0.062852,39815.0,39812.0,0.02386492]
[1645199474700,0.001,39817.0,39814.0,0.07]
[1645199474899,0.04386492,39815.0,39812.0,0.15997239]
[1645199475099,0.001,39817.0,39814.0,0.07]
[1645199475299,0.001,39817.0,39813.0,0.27042092]
[1645199475300,0.04386492,39815.0,39813.0,0.27042092]
[1645199475502,0.001,39817.0,39815.0,0.2551176]
[1645199475700,0.04386492,39816.0,39815.0,0.2551176]
[1645199476403,0.04386492,39816.0,39813.0,0.60652839]
[1645199476404,0.04386492,39816.0,39812.0,0.02386492]
[1645199476600,0.001,39821.0,39815.0,0.001]
[1645199476800,0.04386492,39817.0,39815.0,0.001]
[1645199477000,0.12247508,39812.0,39811.0,0.72727503]
[1645199477199,0.16634,39812.0,39811.0,0.72727503]
[1645199477399,0.16634,39812.0,39811.0,1.3358609]
[1645199478049,0.062844,39818.0,39811.0,1.3358609]
[1645199478250,0.188571,39822.0,39818.0,0.22700385]
[1645199478557,0.188571,39822.0,39812.0,0.2]
[1645199478558,0.63937994,39851.0,39850.0,82.78470199]
[1645199478749,0.63937994,39851.0,39850.0,82.66555681]
[1645199478750,2.35162023,39851.0,39850.0,82.66555681]
[1645199478953,5.35162023,39851.0,39850.0,82.01595627]
[1645199479153,5.35162023,39851.0,39850.0,81.49914984]
[1645199479154,4.01926735,39851.0,39850.0,81.49914984]
[1645199479352,1.44252969,39851.0,39850.0,81.49914984]
[1645199479552,1.05693814,39851.0,39850.0,81.64849086]
[1645199479751,1.05643814,39851.0,39850.0,81.26486699]
[1645199480161,0.90643814,39851.0,39850.0,81.26486699]
[1645199480451,0.125618,39858.0,39850.0,81.26486699]
[1645199480452,0.063805,39856.0,39851.0,0.70389643]
[1645199480652,4.65e-06,39852.0,39851.0,0.70389643]
[1645199480851,0.001,39856.0,39851.0,0.70389643]
[1645199481051,0.19679849,39878.0,39852.0,0.4946612]
[1645199481052,4e-06,39855.0,39852.0,0.4946612]
[1645199481254,4e-06,39855.0,39852.0,0.4446612]
[1645199481717,5e-06,39853.0,39852.0,0.4446612]
[1645199481917,5e-06,39853.0,39852.0,0.5946612]
[1645199482118,5e-06,39853.0,39852.0,0.25]
[1645199482318,0.03669782,39858.0,39852.0,0.5946612]
[1645199482319,1.682e-05,39858.0,39852.0,0.5946612]
[1645199482517,1.682e-05,39858.0,39857.0,0.1]
[1645199482719,0.04501682,39863.0,39857.0,0.1]
[1645199482917,0.07374,39865.0,39857.0,0.1]
[1645199483119,0.08279913,39864.0,39858.0,0.2038123]
[1645199483318,0.125567,39863.0,39862.0,0.22616486]
[1645199483518,0.15571624,39863.0,39862.0,0.22616486]
[1645199483720,0.136529,39871.0,39863.0,1.15]
[1645199484024,0.0522708,39901.0,39870.0,0.1]
[1645199484025,0.03823159,39882.0,39870.0,0.1]
[1645199484219,0.03823159,39882.0,39871.0,0.3446612]
[1645199484419,0.03823159,39882.0,39880.0,0.26145387]
[1645199484420,0.125515,39881.0,39880.0,0.26145387]
[1645199484617,0.125515,39881.0,39880.0,0.13530849]
[1645199484820,0.125515,39881.0,39876.0,0.23326817]
[1645199484821,0.16536576,39881.0,39876.0,0.23326817]
[1645199485025,0.03985076,39877.0,39876.0,0.19653124]
[1645199485320,0.10261676,39877.0,39876.0,0.19653124]
[1645199486354,0.10261676,39877.0,39867.0,0.1]
[1645199486559,0.274962,39877.0,39865.0,0.7624]
[1645199486752,0.063766,39877.0,39868.0,0.20977215]
[1645199487356,0.063766,39877.0,39868.0,0.42505769]
[1645199487753,0.06301292,39871.0,39868.0,0.42505769]
[1645199488152,0.03985076,39869.0,39868.0,0.20977215]
[1645199488553,0.03985076,39869.0,39868.0,0.49123358]
[1645199488753,0.03985076,39869.0,39865.0,0.7624]
[1645199488953,0.0632599,39871.0,39863.0,0.31687196]
[1645199489209,0.062774,39865.0,39862.0,0.1]
[1645199489406,0.032774,39865.0,39862.0,0.1]
[1645199489803,0.032774,39865.0,39863.0,0.18751423]
[1645199490003,0.175548,39869.0,39864.0,0.1]
[1645199490202,0.175548,39869.0,39868.0,0.25103134]
[1645199490403,0.4911388,39869.0,39853.0,0.00277651]
[1645199490606,0.12557,39862.0,39853.0,0.00277651]
[1645199490807,0.05,39874.0,39859.0,0.85]
[1645199491003,0.1,39870.0,39860.0,0.3155908]
[1645199491206,0.0463,39869.0,39859.0,0.85]
[1645199491406,0.0463,39869.0,39865.0,0.24569173]
[1645199491604,0.23466,39869.0,39868.0,0.26362154]
[1645199491907,0.23466,39869.0,39868.0,0.5129543]
[1645199492405,0.28466,39869.0,39868.0,0.5129543]
[1645199492603,0.32551076,39869.0,39868.0,0.24933276]
[1645199492802,0.36256772,39869.0,39865.0,0.24569173]
[1645199493042,0.03985076,39866.0,39865.0,0.24569173]
[1645199493242,0.10263376,39866.0,39858.0,0.31022102]
[1645199493446,0.00680333,39865.0,39856.0,0.7958]
[1645199493744,0.05,39865.0,39858.0,1.48262363]
[1645199493942,0.0463,39866.0,39860.0,1.15]
[1645199494142,0.0463,39866.0,39857.0,0.25728567]
[1645199494448,0.0463,39865.0,39858.0,0.95]
[1645199494743,0.0422,39864.0,39858.0,0.91]
[1645199494941,0.001,39866.0,39858.0,0.91]
[1645199494942,0.0422,39863.0,39858.0,0.91]
[1645199495142,0.0422,39863.0,39858.0,1.2335766]
[1645199495345,0.0372,39863.0,39858.0,1.2335766]
[1645199495543,0.125598,39859.0,39858.0,0.91]
[1645199495743,0.125596,39865.0,39857.0,0.25728567]
[1645199495744,0.0422,39868.0,39861.0,1.15]
[1645199495942,0.03985076,39864.0,39861.0,1.15]
[1645199496144,0.03985076,39862.0,39853.0,0.00277651]
[1645199496344,0.0422,39868.0,39853.0,0.00277651]
[1645199496345,0.3422,39861.0,39853.0,0.00277651]
[1645199496544,0.020599,39861.0,39860.0,0.27343853]
[1645199496790,0.020599,39861.0,39853.0,0.00277651]
[1645199496791,0.08205076,39861.0,39854.0,0.2614917]
[1645199496995,0.125599,39855.0,39854.0,0.2614917]
[1645199497292,0.125599,39855.0,39854.0,0.07955238]
[1645199497293,0.13205076,39855.0,39854.0,0.07955238]
[1645199497493,0.28842,39863.0,39854.0,0.07518251]
[1645199497691,0.251234,39864.0,39856.0,0.6]
[1645199497692,0.07,39859.0,39856.0,0.6]
[1645199497892,0.07,39857.0,39854.0,0.07518251]
[1645199498090,0.0422,39858.0,39855.0,0.21916493]